Cogmind - Beta 14 @@@ ROGUE MODE // 2025.03.29 @ 23:28:52 Player: ochotona_princeps Result: Escaped! Performance ------------- Evolutions (9) 4500 Regions Visited (16) 3200 Robots Destroyed (67) 335 Value Destroyed (2042) 2042 Prototype IDs (26) 520 Alien Tech Used (2) 400 Bonus (3460) 3460 TOTAL SCORE: 14457 Bonus ------- Follower Combat Kills 33 Win 3000 Win Speed 427 Cogmind --------- Core Integrity 1531/1600 Matter 285/300 Energy 184/190 System Corruption 0% Temperature Cool (12) Movement Flying (27) Location To Epsilon Eridani Parts ------- > --- POWER (2) -------- Light Quantum Reactor > --- PROPULSION (4) --- Cooled Nuclear Pulse Thruster Cooled Nuclear Pulse Thruster Cooled Nuclear Pulse Thruster Q-thruster > --- UTILITY (17) ----- Experimental Sensor Array Advanced Signal Interpreter Improved Melee Analysis Suite Hacking Suite Hacking Suite Hacking Suite Hacking Suite Hacking Suite Improved Hacking Suite Improved System Shield Improved System Shield > --- WEAPON (2) ------- Sigix Broadsword > --- INVENTORY (5) ---- Nanoactuators Reaction Control System Improved Cloaking Device Experimental Propulsion Shielding Advanced Force Field Peak State ------------ > --- POWER ------------ Light Antimatter Reactor > --- PROPULSION ------- Cooled Nuclear Pulse Thruster Cooled Nuclear Pulse Thruster Cooled Nuclear Pulse Thruster Q-thruster > --- UTILITY ---------- Experimental Sensor Array Advanced Signal Interpreter Improved Melee Analysis Suite Nanoactuators Reaction Control System Improved Cloaking Device Experimental Propulsion Shielding Advanced Force Field Hacking Suite Hacking Suite Hacking Suite Hacking Suite Hacking Suite Improved Hacking Suite System Shield Improved System Shield > --- WEAPON ----------- Sigix Broadsword > --- INVENTORY -------- Advanced Sensor Array Experimental Propulsion Shielding [Rating: 142] Favorites ----------- Power Micro Nuclear Core Engine Light Ion Engine Power Core Micro Nuclear Core Reactor Light Antimatter Reactor Propulsion Cooled Nuclear Pulse Thruster Wheel Compact Wheel Hover Unit Hover Unit Flight Unit Cooled Nuclear Pulse Thruster Utility Hacking Suite Device Improved Sensor Array Processor Advanced Signal Interpreter Hackware Hacking Suite Protection Improved Light Armor Plating Weapon Spear Energy Gun Spread Laser Energy Cannon Beam Cannon Ballistic Gun Light Assault Rifle Launcher Mini Grenade Launcher Impact Weapon Hammer Slashing Weapon Sigix Broadsword Piercing Weapon Spear Build | -11 -10 -10 -9 -8 -7 -6 -5 -5 -5 -5 -4 -4 -3 -3 -2 -1 ------- Run | Yrd Mat Min Mat Mat Fac Fac Fac Upp Upp Zhi Pro Fac Res Qua Res Acc Slots Evolved 18 | . . . 2 2 2 2 2 . . . . 2 2 . 2 2 Power 1 | . . . . . . . 1 . . . . . . . . . Propulsion 2 | . . . . 1 . . 1 . . . . . . . . . Utility 15 | . . . 2 1 2 2 . . . . . 2 2 . 2 2 Weapon . | . . . . . . . . . . . . . . . . . Parts Attached 115 | 5 17 1 6 14 14 3 2 3 4 8 . 10 12 4 2 10 Power 14 | 1 3 . . 2 . . . . . 2 . . 4 . . 2 Engine 6 | 1 3 . . 1 . . . . . . . . 1 . . . Core 2 | . . . . 1 . . . . . 1 . . . . . . Reactor 6 | . . . . . . . . . . 1 . . 3 . . 2 Propulsion 25 | 2 8 . 1 3 4 . 1 . . 3 . 2 1 . . . Treads . | . . . . . . . . . . . . . . . . . Leg . | . . . . . . . . . . . . . . . . . Wheel 2 | 2 . . . . . . . . . . . . . . . . Hover 7 | . 5 . 1 1 . . . . . . . . . . . . Flight 16 | . 3 . . 2 4 . 1 . . 3 . 2 1 . . . Utility 53 | . 3 1 4 7 5 3 1 . 1 3 . 8 5 3 2 7 Device 24 | . 3 1 1 2 1 1 . . . 2 . 5 2 1 1 4 Storage . | . . . . . . . . . . . . . . . . . Processor 6 | . . . 1 1 3 . . . . . . . 1 . . . Hackware 16 | . . . 1 1 1 2 1 . . . . 3 2 1 1 3 Protection 7 | . . . 1 3 . . . . 1 1 . . . 1 . . Artifact . | . . . . . . . . . . . . . . . . . Weapon 23 | 2 3 . 1 2 5 . . 3 3 . . . 2 1 . 1 Energy Gun 2 | . . . . 1 1 . . . . . . . . . . . Energy Cannon 2 | . 1 . . . . . . . . . . . 1 . . . Ballistic Gun 5 | 2 2 . . 1 . . . . . . . . . . . . Ballistic Cannon . | . . . . . . . . . . . . . . . . . Launcher 4 | . . . . . 1 . . 2 . . . . 1 . . . Special Weapon . | . . . . . . . . . . . . . . . . . Impact Weapon 2 | . . . 1 . . . . . 1 . . . . . . . Slashing Weapon 3 | . . . . . 1 . . . . . . . . 1 . 1 Piercing Weapon 5 | . . . . . 2 . . 1 2 . . . . . . . Special Melee Weapon . | . . . . . . . . . . . . . . . . . Unidentified Prototypes 9 | . . 1 . . . . . . . 4 . 1 1 2 . . Parts Lost 23 | . 7 . . 1 . 1 1 1 . . . 3 3 1 . 5 Power 4 | . 1 . . . . . . . . . . . 2 . . 1 Propulsion 4 | . 3 . . 1 . . . . . . . . . . . . Utility 12 | . 1 . . . . 1 1 1 . . . 2 1 1 . 4 Weapon 3 | . 2 . . . . . . . . . . 1 . . . . Highest Loss Streak 3 | . 3 . . 1 . 1 1 1 . . . 2 1 1 . 3 To Critical Strikes . | . . . . . . . . . . . . . . . . . Average Slot Usage (%) 85 | . 52 71 97 87 94 98 91 92 90 90 94 92 93 91 90 84 Engine 2 | . 7 14 11 6 . . . . . . . . 2 . . . Core 2 | . . . . 2 7 6 5 5 5 2 . . . . . . Reactor 1 | . . . . . . . . . . 1 5 5 2 4 4 3 Hover 5 | . 15 28 22 7 . . . . . . . . . . . . Flight 14 | . 5 . . 10 18 20 23 23 23 22 23 21 19 19 17 16 Device 11 | . 8 14 14 8 9 8 11 11 11 11 11 10 17 10 13 12 Processor 8 | . . . 11 8 14 13 11 11 11 11 11 10 9 9 8 8 Hackware 21 | . . . 11 17 20 29 20 23 23 23 23 29 28 36 38 36 Protection 4 | . . . 7 9 7 6 5 4 2 3 5 5 4 3 4 4 Energy Cannon 2 | . 6 14 11 1 . . . . . . . . 3 1 . . Ballistic Gun 1 | . 9 . . . . . . . . . . . . . . . Impact Weapon 1 | . . . 8 9 2 . . . . . . . . . . . Slashing Weapon 1 | . . . . . 3 . . . . . . . . 2 4 3 Piercing Weapon 2 | . . . . . 1 13 11 8 7 11 11 9 4 1 . . Peak Build Rating 142 | 5 7 16 21 26 50 56 59 59 61 74 74 92 114 122 133 142 Average Rating 61 | 3 4 7 19 22 43 54 57 57 56 65 74 86 105 115 132 131 On Entrance 55 | . 5 7 8 19 24 50 56 59 54 61 74 74 82 108 122 133 Naked Turns . | . . . . . . . . . . . . . . . . . Heaviest Build 42 | 7 7 7 12 16 16 15 15 15 17 22 22 24 42 27 26 26 Greatest Support 43 | 32 32 12 12 18 21 18 24 24 24 24 24 40 43 42 35 35 Greatest Overweight (x) 2 | 2 1 . . . . . . . . . . 1 . . . . Average Overweight (x) . | . . . . . . . . . . . . . . . . . Largest Inventory Capacity 5 | 5 5 5 5 5 5 5 5 5 5 5 5 5 5 5 5 5 Average Capacity 5 | 5 5 5 5 5 5 5 5 5 5 5 5 5 5 5 5 5 Most Carried 5 | . 5 4 4 5 5 4 3 3 4 5 5 5 5 5 4 5 Average Carried 3 | . 2 3 2 4 4 3 3 3 3 4 5 4 2 4 3 3 Final Capacity 5 | 5 5 5 5 5 5 5 5 5 5 5 5 5 5 5 5 5 Final Carried 5 | . 3 4 4 5 5 4 3 3 4 5 5 5 5 5 4 5 Class Distribution -------------------- 33% | Wizard-Sprinter 20% | Hacker-Mutant 15% | Hacker-Sprinter 14% | Scavenger-Mutant 12% | Mutant 4% | Hacker-Gladiator Dominant Class ---------------- Mutant | -10/Materials Scavenger-Mutant | -10/Mines Scavenger-Mutant | -9/Materials Hacker-Mutant | -8/Materials Hacker-Mutant | -7/Factory Hacker-Gladiator | -6/Factory Hacker-Sprinter | -5/Factory Hacker-Sprinter | -5/Upper Caves Hacker-Sprinter | -5/Upper Caves Hacker-Sprinter | -5/Zhirov Hacker-Sprinter | -4/Proximity Caves Wizard-Sprinter | -4/Factory Wizard-Sprinter | -3/Research Wizard-Sprinter | -3/Quarantine Wizard-Sprinter | -2/Research Wizard-Sprinter | -1/Access Resources | -11 -10 -10 -9 -8 -7 -6 -5 -5 -5 -5 -4 -4 -3 -3 -2 -1 ----------- Run | Yrd Mat Min Mat Mat Fac Fac Fac Upp Upp Zhi Pro Fac Res Qua Res Acc Matter Collected 1454 | 154 271 . 75 93 125 31 27 78 141 80 . 28 58 . . 293 Remotely . | . . . . . . . . . . . . . . . . . Salvage Created 3570 | . 623 . 195 143 287 31 27 55 1099 218 . 300 126 . . 466 Parts 144 | . 44 . 9 5 20 2 2 7 8 1 . 13 11 . . 22 Haulers Intercepted 1 | . . . 1 . . . . . . . . . . . . . Recyclers Shooed 1 | . 1 . . . . . . . . . . . . . . . Parts Field Recycled . | . . . . . . . . . . . . . . . . . Retrieved Matter . | . . . . . . . . . . . . . . . . . Parts Self-Destructed 8 | . . . . . . . . 5 2 1 . . . . . . Prevented 2 | . . . . . . . . 2 . . . . . . . . Kills | -11 -10 -10 -9 -8 -7 -6 -5 -5 -5 -5 -4 -4 -3 -3 -2 -1 ------- Run | Yrd Mat Min Mat Mat Fac Fac Fac Upp Upp Zhi Pro Fac Res Qua Res Acc Combat Hostiles Destroyed 36 | . 11 . 1 3 5 . . 5 3 . . . 3 . . 5 Melee 11 | . . . 1 2 2 . . . 1 . . . . . . 5 Guns 7 | . 7 . . . . . . . . . . . . . . . Cannons 4 | . 4 . . . . . . . . . . . . . . . AOE 13 | . . . . . 3 . . 5 2 . . . 3 . . . Classes Destroyed 12 | . 7 . 1 1 1 . . . . . . . . . . 2 Worker 4 | . . . . . 3 . . . . . . . 1 . . . Tunneler 1 | . 1 . . . . . . . . . . . . . . . Hauler 1 | . . . 1 . . . . . . . . . . . . . Recycler 7 | . 2 . 1 . 2 . . . . . . 2 . . . . Mechanic 1 | . 1 . . . . . . . . . . . . . . . Operator 8 | . 1 . 3 . 1 . 1 . . . . 1 1 . . . Watcher 9 | . 3 . . . 1 1 . . . . . . 2 . . 2 Swarmer 16 | . 3 . . . 3 . . 5 2 . . . 3 . . . Grunt 14 | . 8 . 1 2 2 . . . . . . . . . . 1 Sentry 3 | . . . . 1 . . . . 1 . . . . . . 1 Hunter 2 | . . . . . . . . . . . . . . . . 2 Programmer 1 | . . . . . . . . . . . . . . . . 1 Best Kill Streak 9 | . 6 . 2 2 9 1 1 4 3 . . 2 5 . . 3 Combat Bots Only 4 | . 3 . 1 2 3 . . 4 3 . . . 3 . . 3 Max Kills in Single Turn 4 | . 1 . 1 1 4 1 1 4 1 . . 1 2 . . 1 Gunslinging . | . . . . . . . . . . . . . . . . . Exploded 4 | . . . . . 2 . . 4 1 . . . 2 . . . Melee 1 | . . . 1 1 1 . . . 1 . . . . . . 1 Uniques/NPCs Destroyed . | . . . . . . . . . . . . . . . . . Combat | -11 -10 -10 -9 -8 -7 -6 -5 -5 -5 -5 -4 -4 -3 -3 -2 -1 -------- Run | Yrd Mat Min Mat Mat Fac Fac Fac Upp Upp Zhi Pro Fac Res Qua Res Acc Hostile Shots Fired 362 | . 74 . 6 33 24 . 26 5 20 . 2 44 33 4 8 83 Missed 192 | . 29 . 1 11 14 . 19 3 13 . 2 33 23 3 6 35 Damage Taken 3200 | . 574 . 53 331 142 . 116 32 149 . . 248 234 115 51 1155 Core 589 | . 167 . 11 76 61 . 58 12 92 . . 13 30 . . 69 Absorbed by Shields 143 | . . . . . . . . . . . . . . . . 143 Redirected to Shielding 94 | . . . . . . . . . . . . . . . . 94 Regen/Repaired (Parts) 789 | . . . . . . . . . . . . . . 12 16 761 Core Remaining (%) 89 | 100 . 33 97 86 91 100 . . . . 83 98 . 97 100 95 Volleys Fired 109 | . 82 . 9 1 2 . . 5 4 . . . 6 . . . Largest 2 | . 2 . 1 1 1 . . 1 1 . . . 1 . . . Hottest 94 | . 60 . 60 65 30 . . 30 30 . . . 94 . . . Shots Fired 120 | . 93 . 9 1 2 . . 5 4 . . . 6 . . . Gun 51 | . 50 . . 1 . . . . . . . . . . . . Cannon 53 | . 43 . 9 . . . . . . . . . 1 . . . Launcher 16 | . . . . . 2 . . 5 4 . . . 5 . . . Special . | . . . . . . . . . . . . . . . . . Kinetic 50 | . 50 . . . . . . . . . . . . . . . Thermal 53 | . 43 . 9 1 . . . . . . . . . . . . Explosive 16 | . . . . . 2 . . 5 4 . . . 5 . . . Electromagnetic 1 | . . . . . . . . . . . . . 1 . . . Robot Hit Streak 8 | . 8 . 2 3 . . . 1 . . . . 3 . . . Robot Miss Streak 4 | . 4 . 4 2 4 . . . . . . . 1 . . . Penetration Max . | . . . . . . . . . . . . . . . . . Secondary Targets . | . . . . . . . . . . . . . . . . . Shots Hit Robots 148 | . 60 . 11 12 7 1 2 1 15 4 . 5 9 1 . 20 Core Hits 106 | . 35 . 4 5 11 1 . 11 13 2 . 3 14 . . 7 Critical Kills 1 | . 1 . . . . . . . . . . . . . . . Critical Parts Destroyed 2 | . . . 1 1 . . . . . . . . . . . . Critical Strikes 7 | . 1 . 1 1 . . . . 2 . . . . . . 2 Destroy 1 | . 1 . . . . . . . . . . . . . . . Smash 2 | . . . 1 1 . . . . . . . . . . . . Sever 2 | . . . . . . . . . . . . . . . . 2 Impale 2 | . . . . . . . . . 2 . . . . . . . Melee Attacks 153 | . . . 12 15 12 1 10 . 19 4 3 11 13 4 9 40 Impact 29 | . . . 12 15 2 . . . . . . . . . . . Slashing 61 | . . . . . 9 . . . . . . . . 3 9 40 Piercing 63 | . . . . . 1 1 10 . 19 4 3 11 13 1 . . Sneak Attacks 9 | . . . 2 . 1 . 1 . . . . 3 . 1 . 1 Combat Hostiles 2 | . . . . . 1 . . . . . . . . . . 1 Follow-up Attacks 1 | . . . . . . . . . . . . 1 . . . . Damage Inflicted 7754 | . 769 . 282 317 1170 41 146 427 1140 291 . 285 743 127 . 2016 Guns 303 | . 293 . . 10 . . . . . . . . . . . . Cannons 542 | . 471 . 71 . . . . . . . . . . . . . Explosions 1771 | . . . . . 789 . . 427 142 . . . 413 . . . Melee 5133 | . . . 211 307 381 41 146 . 998 291 . 285 330 127 . 2016 Ramming 5 | . 5 . . . . . . . . . . . . . . . Kinetic 293 | . 293 . . . . . . . . . . . . . . . Thermal 552 | . 471 . 71 10 . . . . . . . . . . . . Explosive 1771 | . . . . . 789 . . 427 142 . . . 413 . . . Electromagnetic . | . . . . . . . . . . . . . . . . . Impact 518 | . . . 211 307 . . . . . . . . . . . . Slashing 2477 | . . . . . 334 . . . . . . . . 127 . 2016 Piercing 2138 | . . . . . 47 41 146 . 998 291 . 285 330 . . . Highest Corruption 1 | . 1 1 . . . . 1 1 1 1 1 . . . . . Average Corruption 1 | . 1 1 . . . . 1 1 1 1 1 . . . . . Corruption Purged . | . . . . . . . . . . . . . . . . . Corruption Blocked . | . . . . . . . . . . . . . . . . . Effects 8 | . 5 1 . . . . . . . . 2 . . . . . Message Errors 2 | . 2 . . . . . . . . . . . . . . . Matter Fused 2 | . . 1 . . . . . . . . 1 . . . . . Heat Flow Errors 2 | . 1 . . . . . . . . . 1 . . . . . Data Loss (minor) 1 | . 1 . . . . . . . . . . . . . . . Data Loss (major) 1 | . 1 . . . . . . . . . . . . . . . Overload Shots . | . . . . . . . . . . . . . . . . . Overflow Damage 1018 | . 6 . 93 41 76 . 81 . 450 . . 43 29 72 . 127 Projectiles 6 | . 6 . . . . . . . . . . . . . . . Explosions 33 | . . . . . 33 . . . . . . . . . . . Melee 979 | . . . 93 41 43 . 81 . 450 . . 43 29 72 . 127 Knockbacks 2 | . . . . 2 . . . . . . . . . . . . Impact 1 | . . . . 1 . . . . . . . . . . . . Kinetic . | . . . . . . . . . . . . . . . . . Secondary 1 | . . . . 1 . . . . . . . . . . . . Self-Inflicted Damage 204 | . 2 . . . . . . . 41 . . . 31 . . 130 Shots 3 | . . . . . . . . . 1 . . . 1 . . 1 Rammed 4 | . 4 . . . . . . . . . . . . . . . Targets Rammed 4 | . 4 . . . . . . . . . . . . . . . Kicked . | . . . . . . . . . . . . . . . . . Crushed . | . . . . . . . . . . . . . . . . . Highest Temperature 171 | . 167 . 72 31 2 . . . 2 . 171 3 165 . 23 60 Average Temperature 53 | . 53 . 30 18 2 . . . 2 . 62 3 73 . 23 30 Received Heat Transfer 684 | . 282 . 30 117 57 . 18 9 27 . . 21 18 . . 105 Siege Activations . | . . . . . . . . . . . . . . . . . Robots Corrupted 3 | . . . 2 1 . . . . . . . . . . . . Combat Hostiles 1 | . . . . 1 . . . . . . . . . . . . Parts Fried 3 | . . . 1 2 . . . . . . . . . . . . Impact Corruptions 7 | . . . 5 2 . . . . . . . . . . . . Robots Melted . | . . . . . . . . . . . . . . . . . Combat Hostiles . | . . . . . . . . . . . . . . . . . Parts Melted 1 | . 1 . . . . . . . . . . . . . . . Heat Transferred 1162 | . 999 . 148 15 . . . . . . . . . . . . Parts Sabotaged . | . . . . . . . . . . . . . . . . . Parts Stolen . | . . . . . . . . . . . . . . . . . Parts Stripped . | . . . . . . . . . . . . . . . . . Power Chain Reactions . | . . . . . . . . . . . . . . . . . Alert | -11 -10 -10 -9 -8 -7 -6 -5 -5 -5 -5 -4 -4 -3 -3 -2 -1 ------- Run | Yrd Mat Min Mat Mat Fac Fac Fac Upp Upp Zhi Pro Fac Res Qua Res Acc Peak Influence 558 | . 342 117 227 395 441 258 558 . . . . 103 418 346 209 402 Initial 234 | . . 117 45 95 179 202 126 . . . . 46 44 234 194 64 Average 171 | . 162 117 152 222 195 222 277 . . . . 41 168 256 91 199 Maximum Alert Level 2 | . 1 . 1 1 2 1 2 . . . . . 2 1 1 2 Low Security (%) 63 | 100 69 100 67 38 70 . 43 . . . . 100 60 . 93 55 Level 1 35 | . 30 . 32 61 25 100 33 . . . . . 36 100 6 43 Level 2 1 | . . . . . 3 . 22 . . . . . 2 . . 1 Level 3 . | . . . . . . . . . . . . . . . . . Level 4 . | . . . . . . . . . . . . . . . . . Level 5 . | . . . . . . . . . . . . . . . . . High Security . | . . . . . . . . . . . . . . . . . Max Security . | . . . . . . . . . . . . . . . . . Squads Dispatched 28 | . 1 . 3 2 7 1 2 . . . . 3 6 . . 3 Investigation 15 | . . . 1 2 5 1 1 . . . . 2 2 . . 1 Extermination 4 | . . . . . 1 . . . . . . . 1 . . 2 Reinforcement 9 | . 1 . 2 . 1 . 1 . . . . 1 3 . . . Assault . | . . . . . . . . . . . . . . . . . Garrison . | . . . . . . . . . . . . . . . . . Intercept . | . . . . . . . . . . . . . . . . . Searches Triggered . | . . . . . . . . . . . . . . . . . Construction Impeded . | . . . . . . . . . . . . . . . . . Haulers Reinforced . | . . . . . . . . . . . . . . . . . Active Scanning Responses . | . . . . . . . . . . . . . . . . . Cargo Convoy Interrupts . | . . . . . . . . . . . . . . . . . Stealth | -11 -10 -10 -9 -8 -7 -6 -5 -5 -5 -5 -4 -4 -3 -3 -2 -1 --------- Run | Yrd Mat Min Mat Mat Fac Fac Fac Upp Upp Zhi Pro Fac Res Qua Res Acc Distress Signals 15 | . 1 . 2 3 2 . 1 . . . . 1 1 1 1 2 Communications Jammed . | . . . . . . . . . . . . . . . . . Distress Signals . | . . . . . . . . . . . . . . . . . Times Spotted 209 | . 28 . 11 19 20 2 19 11 6 . 3 19 33 4 10 24 Peak Tracking Total 16 | . 6 . 3 11 5 2 10 7 5 . 5 14 16 5 6 6 Tactical Retreats 40 | . 5 . 1 2 7 . 3 1 2 . 2 2 7 2 1 5 Traps | -11 -10 -10 -9 -8 -7 -6 -5 -5 -5 -5 -4 -4 -3 -3 -2 -1 ------- Run | Yrd Mat Min Mat Mat Fac Fac Fac Upp Upp Zhi Pro Fac Res Qua Res Acc Traps Triggered 9 | . . . . 1 1 . . . . . . 1 . 1 . 5 Indirectly . | . . . . . . . . . . . . . . . . . Trap Hack Attempts . | . . . . . . . . . . . . . . . . . Triggered . | . . . . . . . . . . . . . . . . . Disarmed . | . . . . . . . . . . . . . . . . . Reprogrammed . | . . . . . . . . . . . . . . . . . Reused . | . . . . . . . . . . . . . . . . . Traps Extracted . | . . . . . . . . . . . . . . . . . Installed . | . . . . . . . . . . . . . . . . . Triggered 1 | . . . . . . . . 1 . . . . . . . . Machines | -11 -10 -10 -9 -8 -7 -6 -5 -5 -5 -5 -4 -4 -3 -3 -2 -1 ---------- Run | Yrd Mat Min Mat Mat Fac Fac Fac Upp Upp Zhi Pro Fac Res Qua Res Acc Machines Disabled 7 | . 1 . . . 3 . . . . . . . 1 1 . 1 Max in Single Turn 1 | . 1 . . . 1 . . . . . . . 1 1 . 1 Garrison Access 4 | . . . . 1 . . . . . . . 1 . . . 2 Machines Repaired . | . . . . . . . . . . . . . . . . . Machines Dismantled . | . . . . . . . . . . . . . . . . . Machines Sabotaged . | . . . . . . . . . . . . . . . . . Overloaded Fab Kills . | . . . . . . . . . . . . . . . . . Hacking | -11 -10 -10 -9 -8 -7 -6 -5 -5 -5 -5 -4 -4 -3 -3 -2 -1 --------- Run | Yrd Mat Min Mat Mat Fac Fac Fac Upp Upp Zhi Pro Fac Res Qua Res Acc Machines Accessed 78 | . 7 . 3 6 16 4 1 . . 9 . 7 3 6 3 13 Terminals 50 | . 6 . 3 3 10 4 1 . . . . 4 2 6 3 8 Fabricators 5 | . . . . . 2 . . . . . . 1 1 . . 1 Repair Stations 2 | . . . . 1 . . . . . . . . . . . 1 Recycling Units 6 | . 1 . . . 3 . . . . . . 1 . . . 1 Scanalyzers 2 | . . . . 1 1 . . . . . . . . . . . Garrison Access 4 | . . . . 1 . . . . . . . 1 . . . 2 Total Hacks 259 | . 23 . 11 16 39 11 3 . . 48 . 19 9 23 21 36 Successful 190 | . 12 . 8 7 22 7 2 . . 48 . 16 7 16 18 27 Failed 68 | . 10 . 3 9 17 4 1 . . . . 3 2 7 3 9 Catastrophic 2 | . 1 . . . 1 . . . . . . . . . . . Database Lockouts 1 | . 1 . . . . . . . . . . . . . . . Manual 113 | . 19 . 8 9 17 3 1 . . . . 5 4 17 10 20 Terminals 179 | . 22 . 11 10 27 11 3 . . . . 15 7 23 21 29 Fabricators 10 | . . . . . 4 . . . . . . 2 2 . . 2 Repair Stations 5 | . . . . 3 . . . . . . . . . . . 2 Recycling Units 7 | . 1 . . . 4 . . . . . . 1 . . . 1 Scanalyzers 5 | . . . . 1 4 . . . . . . . . . . . Garrison Access 5 | . . . . 2 . . . . . . . 1 . . . 2 Terminal Hacks 140 | . 6 . 4 3 8 6 1 . . 48 . 11 5 14 16 18 Record 39 | . . . . . . . . . . 36 . . . 1 . 2 Part Schematic 8 | . . . . 1 1 1 . . . 4 . 1 . . . . Robot Analysis 4 | . . . . . . . . . . 4 . . . . . . Prototype ID Bank 7 | . 1 . . . 2 . . . . 4 . . . . . . Open Door 1 | . . . . . . . . . . . . . . . . 1 Level Access Points 7 | . . . . . 1 1 . . . . . 1 1 1 1 1 Branch Access Points 4 | . . . . . . . . . . . . 1 . 1 2 . Emergency Access Points 3 | . . . . . . . . . . . . . . 1 1 1 Machine Index 5 | . . . . . . 1 1 . . . . 1 . . 1 1 Terminal Index 7 | . 1 . 1 1 1 . . . . . . . 1 1 . 1 Fabricator Index 1 | . . . . . 1 . . . . . . . . . . . Repair Station Index 1 | . . . . . . . . . . . . . . 1 . . Unreport Threat 11 | . 1 . . . . . . . . . . 3 2 . 3 2 Locate Traps 2 | . . . . . . . . . . . . 1 . . . 1 Dispatch Records 4 | . . . . . . . . . . . . . . 1 2 1 Security Status 1 | . . . . . . . . . . . . . . 1 . . Surveillance Status 1 | . . . . . . . . . . . . . . 1 . . Patrol Status 4 | . . . . . . . . . . . . . . 1 2 1 Recall Investigation 3 | . . . 1 . . . . . . . . 1 . . . 1 Recall Extermination 2 | . . . . . 1 . . . . . . . . . . 1 Hauler Manifests 4 | . 1 . 1 1 . 1 . . . . . . . . . . Registered Components 2 | . 1 . . . . . . . . . . 1 . . . . Registered Prototypes 2 | . . . . . . . . . . . . 1 . . 1 . Zone Layout 17 | . 1 . 1 . 1 2 . . . . . . 1 4 3 4 Fabricator Hacks 8 | . . . . . 2 . . . . . . 2 2 . . 2 Load Schematic 4 | . . . . . 1 . . . . . . 1 1 . . 1 Build 4 | . . . . . 1 . . . . . . 1 1 . . 1 Repair Station Hacks 3 | . . . . 1 . . . . . . . . . . . 2 Scan Component 2 | . . . . 1 . . . . . . . . . . . 1 Repair 1 | . . . . . . . . . . . . . . . . 1 Recycling Unit Hacks 6 | . 1 . . . 3 . . . . . . 1 . . . 1 Retrieve Components 6 | . 1 . . . 3 . . . . . . 1 . . . 1 Scanalyzer 4 | . . . . . 4 . . . . . . . . . . . Insert Component 1 | . . . . . 1 . . . . . . . . . . . Analyze 3 | . . . . . 3 . . . . . . . . . . . Garrison Access Hacks 4 | . . . . 1 . . . . . . . 1 . . . 2 Seal Access 4 | . . . . 1 . . . . . . . 1 . . . 2 Unauthorized Hacks 25 | . 5 . 4 2 5 1 1 . . . . 1 . 2 2 2 Terminals 25 | . 5 . 4 2 5 1 1 . . . . 1 . 2 2 2 Track 6 | . 3 . . 1 . 1 . . . . . . . 1 . . Assimilate 10 | . . . 1 . 4 . 1 . . . . 1 . 1 1 1 Botnet 6 | . 1 . 2 . 1 . . . . . . . . . 1 1 Operators 3 | . 1 . 1 1 . . . . . . . . . . . . Fabricators . | . . . . . . . . . . . . . . . . . Repair Stations . | . . . . . . . . . . . . . . . . . Recycling Units . | . . . . . . . . . . . . . . . . . Scanalyzers . | . . . . . . . . . . . . . . . . . Garrison Access . | . . . . . . . . . . . . . . . . . Data Cores Recovered 1 | . . . 1 . . . . . . . . . . . . . Used . | . . . . . . . . . . . . . . . . . Hacking Detections 50 | . 5 . 3 4 12 4 1 . . . . 5 3 1 2 10 Full Trace Events 16 | . 1 . 2 1 5 1 1 . . . . 2 2 . . 1 Feedback Events 3 | . . . . . . 1 1 . . . . 1 . . . . Corruption 1 | . . . . . . . 1 . . . . . . . . . Hackware Fried 2 | . . . . . . 1 . . . . . 1 . . . . Feedback Blocked . | . . . . . . . . . . . . . . . . . Robot Schematics Acquired . | . . . . . . . . . . . . . . . . . Robots Built . | . . . . . . . . . . . . . . . . . Authchips . | . . . . . . . . . . . . . . . . . Time . | . . . . . . . . . . . . . . . . . Total Robot Build Rating . | . . . . . . . . . . . . . . . . . Part Schematics Acquired 9 | . . . . 1 2 1 . . . 4 . 1 . . . . Parts Built 4 | . . . . . 1 . . . . . . 1 1 . . 1 Authchips . | . . . . . . . . . . . . . . . . . Time 310 | . . . . . 73 . . . . . . 95 95 . . 47 Total Part Build Rating 18 | . . . . . 3 . . . . . . 5 5 . . 5 Parts Repaired 1 | . . . . . . . . . . . . . . . . 1 Time 45 | . . . . . . . . . . . . . . . . 45 Parts Recycled . | . . . . . . . . . . . . . . . . . Recycled Matter . | . . . . . . . . . . . . . . . . . Retrieved Matter . | . . . . . . . . . . . . . . . . . Retrieved Components 21 | . 9 . . . 8 . . . . . . 2 . . . 2 Parts Scanalyzed 1 | . . . . . 1 . . . . . . . . . . . Part Schematics Acquired 1 | . . . . . 1 . . . . . . . . . . . Parts Damaged 1 | . . . . . 1 . . . . . . . . . . . Bothacking | -11 -10 -10 -9 -8 -7 -6 -5 -5 -5 -5 -4 -4 -3 -3 -2 -1 ------------ Run | Yrd Mat Min Mat Mat Fac Fac Fac Upp Upp Zhi Pro Fac Res Qua Res Acc Used RIF Installer . | . . . . . . . . . . . . . . . . . Robots Hacked . | . . . . . . . . . . . . . . . . . Non-combat . | . . . . . . . . . . . . . . . . . Combat . | . . . . . . . . . . . . . . . . . Robot Hacks Applied . | . . . . . . . . . . . . . . . . . Relay Couplers Released . | . . . . . . . . . . . . . . . . . Fabnet Peak Effective % . | . . . . . . . . . . . . . . . . . Robots Rewired . | . . . . . . . . . . . . . . . . . Allies Hacked . | . . . . . . . . . . . . . . . . . Hacks Repelled . | . . . . . . . . . . . . . . . . . Allies | -11 -10 -10 -9 -8 -7 -6 -5 -5 -5 -5 -4 -4 -3 -3 -2 -1 -------- Run | Yrd Mat Min Mat Mat Fac Fac Fac Upp Upp Zhi Pro Fac Res Qua Res Acc Total Allies 7 | . . 2 . . 2 . . . . . . . . 1 1 1 Largest Group 2 | . . 2 2 . 1 . . . . . . . . 1 1 1 Highest-Rated Group 35 | . . 35 35 . 26 . . . . . . . . 10 10 26 Highest-Rated Ally 31 | . . 31 31 . 26 . . . . . . . . 10 10 26 Total Orders . | . . . . . . . . . . . . . . . . . Ally Attacks 7 | . . . 7 . . . . . . . . . . . . . Total Damage 103 | . . . 103 . . . . . . . . . . . . . Kills 3 | . . . 3 . . . . . . . . . . . . . Allies Corrupted . | . . . . . . . . . . . . . . . . . Allies Melted . | . . . . . . . . . . . . . . . . . Intel | -11 -10 -10 -9 -8 -7 -6 -5 -5 -5 -5 -4 -4 -3 -3 -2 -1 ------- Run | Yrd Mat Min Mat Mat Fac Fac Fac Upp Upp Zhi Pro Fac Res Qua Res Acc Robot Analysis Total 4 | . . . . . . . . . . 4 . . . . . . Derelict Logs Recovered 3 | . . 1 . . . . . 1 . . 1 . . . . . Drone Launches . | . . . . . . . . . . . . . . . . . Drone Recoveries . | . . . . . . . . . . . . . . . . . Exploration | -11 -10 -10 -9 -8 -7 -6 -5 -5 -5 -5 -4 -4 -3 -3 -2 -1 ------------- Run | Yrd Mat Min Mat Mat Fac Fac Fac Upp Upp Zhi Pro Fac Res Qua Res Acc Turns Passed 5526 | 55 742 224 398 375 907 171 140 175 186 135 110 381 286 233 223 785 Spaces Moved 11251 | 49 847 354 486 597 2179 425 300 429 405 358 388 908 732 592 594 1608 Core 75 | 30 45 . . . . . . . . . . . . . . . Treads . | . . . . . . . . . . . . . . . . . Legs . | . . . . . . . . . . . . . . . . . Wheels 38 | 19 19 . . . . . . . . . . . . . . . Hover 1453 | . 455 354 486 158 . . . . . . . . . . . . Flight 9685 | . 328 . . 439 2179 425 300 429 405 358 388 908 732 592 594 1608 Fastest Speed 17 | 50 37 56 56 34 34 34 31 31 31 27 27 27 20 17 17 17 Average Speed 34 | 97 51 56 56 38 34 34 31 31 31 29 27 27 26 26 26 26 Slowest Speed 150 | 150 120 56 56 52 37 34 31 31 31 32 27 99 29 27 27 30 Overloaded Moves 131 | . . . . . . . . . . . . . 75 14 13 29 Propulsion Burnouts . | . . . . . . . . . . . . . . . . . Robots Hopped 60 | . 4 . . 6 8 3 . . 4 . . 7 4 6 2 16 Cave-ins Triggered . | . . . . . . . . . . . . . . . . . Exploration Rate (%) 41 | 3 93 85 34 39 53 14 11 60 57 62 69 17 20 47 14 34 Regions Visited 16 Branch Regions 6 Pre-discovered Areas 3 | . . . . . . . . . . 3 . . . . . . Known Exits Taken 13 | . . . 1 1 1 1 1 1 1 1 1 1 1 1 1 . Unknown Exits Taken 3 | 1 1 1 . . . . . . . . . . . . . . Scrap Searched 9 | . . 2 . . . . . 2 4 . 1 . . . . . Spaces Dug 42 | . . . 2 1 2 . 4 . . . . 2 3 2 9 17 Terrain Destroyed 162 | . . . 2 1 21 . 4 33 12 . . 2 29 2 9 47 Melee 42 | . . . 2 1 2 . 4 . . . . 2 3 2 9 17 Projectile . | . . . . . . . . . . . . . . . . . AOE 120 | . . . . . 19 . . 33 12 . . . 26 . . 30 Terrain Rammed . | . . . . . . . . . . . . . . . . . Walls Destroyed . | . . . . . . . . . . . . . . . . . Machines Disabled . | . . . . . . . . . . . . . . . . . Actions | -11 -10 -10 -9 -8 -7 -6 -5 -5 -5 -5 -4 -4 -3 -3 -2 -1 --------- Run | Yrd Mat Min Mat Mat Fac Fac Fac Upp Upp Zhi Pro Fac Res Qua Res Acc Total 12513 | 53 1064 379 580 706 2314 445 330 463 429 381 389 1016 796 656 645 1867 Wait 784 | . 100 24 63 70 71 19 19 27 5 . . 89 30 55 42 170 Move 11115 | 48 838 353 485 584 2162 418 299 428 396 357 387 893 724 579 589 1575 Hop 59 | . 4 . . 6 8 3 . . 4 . . 7 3 6 2 16 Pick Up 42 | . 7 . 3 4 11 1 . . . 2 . 4 3 3 1 3 Fast Attach 68 | 5 9 1 3 7 9 1 1 . 2 9 . 7 8 2 . 4 Attach 39 | . 8 . 3 5 4 2 1 . . . . 2 4 2 2 6 Detach 18 | . 6 1 . 2 1 . . . 1 . . . 1 . . 6 Swap 9 | . . . . 2 1 . . 3 2 . . 1 . . . . Drop 59 | . 6 . 2 10 15 . . . . 9 . 5 4 5 . 3 Fire 109 | . 82 . 9 1 2 . . 5 4 . . . 6 . . . Melee 145 | . . . 12 15 12 1 10 . 15 4 2 8 13 4 9 40 Ram 4 | . 4 . . . . . . . . . . . . . . . Kick . | . . . . . . . . . . . . . . . . . Crush . | . . . . . . . . . . . . . . . . . Escape Stasis 62 | . . . . . 18 . . . . . . . . . . 44 Rewire . | . . . . . . . . . . . . . . . . . Trap . | . . . . . . . . . . . . . . . . . Miscellaneous . | . . . . . . . . . . . . . . . . . Route ------- -11/Scrapyard -10/Materials (discovered 6 exits: *Mat x3 / [*Min x2] / [*Sub]) -10/Mines (discovered 2 exits: *Mat x2) -9/Materials -8/Materials -7/Factory (discovered 6 exits: *Fac x4 / *Low x2) -6/Factory (discovered 4 exits: *Fac x4) -5/Factory -5/Upper Caves -5/Upper Caves -5/Zhirov -4/Proximity Caves -4/Factory (discovered 7 exits: *Res x4 / Upp x2 / *Arm) -3/Research (discovered 4 exits: Res x3 / *Qua) -3/Quarantine -2/Research (discovered 5 exits: *Acc x3 / Tes x2) -1/Access (discovered 2 exits: *Sur / [Com]) To Epsilon Eridani History --------- Turn | Location | Event 3 | -11/Scrapyard | Discovered new exit (range 16) 56 | -11/Scrapyard | Entered Materials 139 | -10/Materials | Discovered new exit (range 14) 148 | -10/Materials | Central database locked down 277 | -10/Materials | Discovered new exit (range 10) 307 | -10/Materials | Build established: Mutant 412 | -10/Materials | Discovered new exit (range 16) 501 | -10/Materials | Lost 3 parts (1n1u1w) 505 | -10/Materials | Core integrity fell below 50% 565 | -10/Materials | Discovered new exit (range 9) 663 | -10/Materials | Discovered new exit (range 14) 746 | -10/Materials | Discovered new exit (range 8) 798 | -10/Materials | Entered Mines 823 | -10/Mines | Discovered new exit (range 7) 865 | -10/Mines | Learned location of 1 exit from Materials 927 | -10/Mines | Found a damaged Exp. Sensor Array with a note attached 928 | -10/Mines | Found Prototype Device 928 | -10/Mines | Identified Exp. Sensor Array 951 | -10/Mines | Discovered new exit (range 7) 1022 | -10/Mines | Entered Materials 1022 | -9/Materials | Accompanied by 2 allies 1022 | -9/Materials | Evolved 2 slots: Utility x2 1023 | -9/Materials | Identified exit to Materials 1026 | -9/Materials | Build established: Scavenger-Mutant 1027 | -9/Materials | Led the pair of lost Derelicts to an unsafe place 1420 | -9/Materials | Entered another Materials area 1420 | -8/Materials | Evolved 2 slots: Propulsion x1, Utility x1 1684 | -8/Materials | Discovered new exit (range 3) 1791 | -8/Materials | Build established: Hacker-Mutant 1794 | -8/Materials | Identified exit to Factory 1795 | -8/Materials | Entered Factory 1795 | -7/Factory | Evolved 2 slots: Utility x2 2163 | -7/Factory | Fabricated Hacking Suite? 2508 | -7/Factory | Discovered new exit (range 15) 2512 | -7/Factory | Discovered new exit (range 14) 2513 | -7/Factory | Identified exit to Lower Caves 2607 | -7/Factory | Identified exit to Factory 2702 | -7/Factory | Entered another Factory area 2702 | -6/Factory | Evolved 2 slots: Utility x2 2788 | -6/Factory | Hacking Suite fried by hacking feedback 2815 | -6/Factory | Identified exit to Factory 2873 | -6/Factory | Entered another Factory area 2873 | -5/Factory | Evolved 2 slots: Power x1, Propulsion x1 2953 | -5/Factory | Spotted B-75 Beast 3011 | -5/Factory | Discovered new exit (range 4) 3012 | -5/Factory | Identified exit to Upper Caves 3013 | -5/Factory | Entered Upper Caves 3118 | -5/Upper Caves | Discovered new exit (range 8) 3131 | -5/Upper Caves | Learned location of 1 exit from Factory 3176 | -5/Upper Caves | Build established: Hacker-Sprinter 3183 | -5/Upper Caves | Attracted the attention of an 0b10 outpost 3187 | -5/Upper Caves | Identified exit to Upper Caves 3188 | -5/Upper Caves | Entered another Upper Caves area 3231 | -5/Upper Caves | Spotted B-75 Beast 3292 | -5/Upper Caves | Attracted the attention of an 0b10 checkpoint 3361 | -5/Upper Caves | Discovered new exit (range 13) 3365 | -5/Upper Caves | Identified exit to Zhirov 3374 | -5/Upper Caves | Entered Zhirov 3374 | -5/Zhirov | Discovered new exit (range 3) 3404 | -5/Zhirov | Learned location of Quarantine (-3) 3404 | -5/Zhirov | Learned location of Testing (-2) 3404 | -5/Zhirov | Learned location of Command (-1) 3426 | -5/Zhirov | Found Alien Artifact 3426 | -5/Zhirov | Identified Integrated Reactor 3426 | -5/Zhirov | Installed Integrated Reactor, increased core energy generation (+10) 3436 | -5/Zhirov | Found Alien Artifact 3509 | -5/Zhirov | Identified exit to Proximity Caves 3509 | -5/Zhirov | Entered Proximity Caves 3595 | -4/Proximity Caves | Learned 8 Research zone layouts 3618 | -4/Proximity Caves | Discovered new exit (range 5) 3619 | -4/Proximity Caves | Identified exit to Factory 3619 | -4/Proximity Caves | Entered Factory 3619 | -4/Factory | Evolved 2 slots: Utility x2 3620 | -4/Factory | Identified exit to Upper Caves 3730 | -4/Factory | Fabricated Imp. System Shield? 3816 | -4/Factory | Identified exit to Armory 3816 | -4/Factory | Identified exit to Research 3904 | -4/Factory | System Shield fried by hacking feedback 4000 | -4/Factory | Entered Research 4000 | -3/Research | Evolved 2 slots: Utility x2 4001 | -3/Research | Identified exit to Research 4173 | -3/Research | Fabricated Imp. System Shield? 4236 | -3/Research | Build established: Wizard-Sprinter 4284 | -3/Research | Discovered new exit (range 5) 4285 | -3/Research | Identified exit to Quarantine 4286 | -3/Research | Entered Quarantine 4382 | -3/Quarantine | Found Alien Slashing Weapon 4382 | -3/Quarantine | Identified Sigix Broadsword 4519 | -3/Quarantine | Entered Research 4519 | -2/Research | Evolved 2 slots: Utility x2 4539 | -2/Research | Identified exit to Access 4564 | -2/Research | Identified exit to Testing 4742 | -2/Research | Entered Access 4742 | -1/Access | Evolved 2 slots: Utility x2 4814 | -1/Access | Identified exit to Surface 4958 | -1/Access | Repaired Broken Exp. Sensor Array 5151 | -1/Access | Fabricated Imp. System Shield? 5269 | -1/Access | Spotted B-99 Colossus 5377 | -1/Access | Discovered new exit (range 15) 5527 | *** | Escaped! Last Messages --------------- 05494_ Field strength at 57. 05494_ Penetrated by Slug. 05495_ Field strength at 38. 05496_ Field strength at 33. 05497_ Field strength at 28. 05497_ Lgt. Antimatter Reactor destroyed. 05497_ Slug penetrates Wall. 05498_ Field strength at 9. 05499_ Stasis field depleted. 05502_ System Shield destroyed. 05502_ Penetrated by Slug. 05506_ Acquired Lgt. Quantum Reactor. 05506_ Slug penetrates Wall. 05510_ Dropped Adv. Sensor Array. 05512_ Hacking Suite destroyed. 05521_ Connecting with Terminal... >>Open(Door) Sealed Barrier opened. 05522_ Dropped Exp. Propulsion Shielding. 05525_ The Access Shell folds into the floor. Map ----- +----------------------------------------------------+ | #?????? ?######????# ! #?###+##???????? | | ########+### #################+### ##### ##? | | ^^ #? | | =% p +? | | ############ ##################### ###### #? | | #?######+#######???????????????## ##???????? | | =#?# #????????????????#Y #????????? | | "" #?# #????????????????# #????????? | | "" #?# """" #????????????????# +????????? | | "" #?# """""" #????????????????# #????????? | | "" #?# ""F "" #????????????????# #????????? | | "" #?# """ #????????????????# #????????? | | #?# #???????# ""????#t #????????? | | #?# #???????# """??# #????????? | | #?# #???????# " # #????????? | | S"" #?# #???????# + #????????? | | """ #?# #???????# # #????????? | | ######?# #???????#] ??# #????????? | | ???????##############???????#####????# #????????? | | ?????????????????????????????###?????# #????????? | | ????????????????????########## ####### #????????? | | ????????????????????" #????????? | | ??????????????BB????" #????????? | | ??????????????BB????" #????????? | | ????????????????????" #????????? | | ????????????????????" "@ #????????? | | ????????????????????" "" #????????? | | ????????????????????" #????????? | | ??????????????BB????" #????????? | | ??????????????BB????" """!""" #????????? | | ????????????????????" """T""" #????????? | | ????????????????????########## ####### #????????? | | ?????????????????????????????###?????? #????????? | | ?????????????????????????????????????? #????????? | | ?????????????????????????????????????? w#????????? | | ?????????????????????????????????????? #????????? | | ??????????????????????????????????????t #????????? | | ??????????????????????????????????????? #????????? | | ?????????????????????????????????????????????????? | | ?????????????????????????????????????????????????? | | ?????????????????????????????????????????????????? | | ?????????????????????????????????????????????????? | | ?????????????????????????????????????????????????? | | ?????????????????????????????????????????????????? | | ?????????????????????????????????????????????????? | | ?????????????????????????????????????????????????? | | ?????????????????????????????????????????????????? | | ?????????????????????????????????????????????????? | | ?????????????????????????????????????????????????? | | ?????????????????????????????????????????????????? | +----------------------------------------------------+ Best States ------------- Heat Dissipation 52 Energy Generation 48 Energy Capacity 390 Matter Stores 300 Matter Capacity 300 Sight Range 16 Robot Scan Range 20 Terrain Scan Density 10 Cloak Strength 3 Additional Mass Support 16 Armor Coverage 300 Propulsion Shielding 90 Melee Speed Boost 30 Evasion (%) 76 Melee Accuracy 6 Offensive Hacking 74 Defensive Hacking 34 Item Schematics ----------------- Hacking Suite | -8/Materials | Hacked Mic. Nuclear Core | -7/Factory | Scanalyzed Imp. System Shield | -7/Factory | Hacked Cld. Field Propulsion Drive | -6/Factory | Hacked Assault Drone Bay | -5/Zhirov | Free Exp. Heat Sink | -5/Zhirov | Free Exp. Optical Array | -5/Zhirov | Free Imp. Arc Thrower | -5/Zhirov | Free Q-thruster | -4/Factory | Hacked Robot Schematics ------------------ None Fabricated ------------ Hacking Suite | x1 | -7/Factory Imp. System Shield | x1 | -4/Factory Imp. System Shield | x1 | -3/Research Imp. System Shield | x1 | -1/Access Alien Tech Used ----------------- Integrated Reactor Sigix Broadsword Achievements -------------- None Challenges ------------ None Game ------ Seed GhostReactiveCapacitor Manual? 0 Play Time 02:01:59 Cumulative 205.2 hours Start 2025.03.29 @ 20:38:54 End 2025.03.29 @ 23:28:52 Sessions 1 Manual Loads 0 Difficulty Rogue Special Mode None Game No. 196 Rogue 135 Adventurer 61 Explorer 0 Win Type 0 Total 10 Types 8/0/2/0/0/0/0/0/0 Lore% 32 Gallery% 65 Achievement% 60 Wizard Run 0 Options --------- Layout 1 ASCII 0 Keyboard 0 Movement Mouse Keybinds 0 Fullscreen 2 Font 32/SmallcapsGlow Map View 50x35 Zoom Use 0% Tactical HUD 1 Map Filters NONE Filters NONE Steam 1 RUN: cc6d81f1-5fda-414f-b6e5-3405b380e1a0